bitfinex-derivatives/quotes_ETHF0:USTF0_20241007
["timestamp","ask_amount","ask_price","bid_price","bid_amount"]
[1728291414960,1.58737,2484.4,2484.3,0.40258]
[1728291417863,1.1848,2484.4,2484.3,0.40258]
[1728291418254,1.58737,2484.4,2484.3,0.40258]
[1728291420158,1.1848,2484.4,2484.2,0.3922]
[1728291420464,1.1848,2484.4,2484.2,0.79479]
[1728291420465,0.40258,2484.3,2484.2,0.79479]
[1728291421168,1.1848,2484.4,2484.2,0.79479]
[1728291421169,1.58738,2484.4,2484.3,0.40258]
[1728291421363,0.796,2484.4,2484.3,0.40258]
[1728291421861,1.19857,2484.4,2484.3,0.40258]
[1728291424662,0.3882,2484.4,2484.3,0.40258]
[1728291425162,0.79077,2484.4,2484.3,0.40258]
[1728291426064,0.784,2484.4,2484.3,0.40258]
[1728291426265,0.3882,2484.4,2484.3,0.40258]
[1728291426465,2.14257,2484.5,2484.2,0.3922]
[1728291426466,2.1502,2484.6,2484.2,0.3922]
[1728291426660,2.96875,2484.6,2484.5,0.40255]
[1728291430058,2.5662,2484.6,2484.2,0.3922]
[1728291430259,2.5662,2484.6,2484.1,0.4037]
[1728291430260,1.74,2484.4,2484.1,0.4037]
[1728291430466,1.74,2484.4,2484.0,0.79442]
[1728291430467,0.40262,2484.1,2484.0,0.79442]
[1728291430664,0.8206,2484.3,2484.0,0.3918]
[1728291430979,0.4134,2484.2,2484.1,0.40262]
[1728291431861,0.816,2484.2,2484.1,0.40262]
[1728291432960,0.4134,2484.2,2484.1,0.40262]
[1728291434172,0.816,2484.2,2484.1,0.40262]
[1728291434368,0.4134,2484.2,2484.1,0.40262]
[1728291435966,0.816,2484.2,2484.1,0.40262]
[1728291437175,0.4134,2484.2,2484.1,0.40262]
[1728291437566,0.816,2484.2,2484.1,0.40262]
[1728291439865,2.556,2484.2,2484.1,0.40262]
[1728291444071,2.1534,2484.2,2484.1,0.40262]
[1728291444269,0.4134,2484.2,2484.1,0.40262]
[1728291444467,2.14256,2484.5,2484.0,2.74658]
[1728291444673,2.14256,2484.5,2484.4,0.40257]
[1728291445069,6.16736,2484.5,2484.4,0.40257]
[1728291448081,2.14256,2484.5,2484.4,0.40257]
[1728291451281,2.14256,2484.5,2484.2,1.43947457]
[1728291451282,0.40258,2484.4,2484.3,0.40258]
[1728291451480,1.19748,2484.4,2484.3,0.40258]
[1728291451679,1.61038,2484.4,2484.3,0.40258]
[1728291455182,1.61037,2484.4,2484.3,0.40258]
[1728291457376,0.8223,2484.4,2484.3,0.40258]
[1728291458580,1.22487,2484.4,2484.3,0.40258]
[1728291461784,0.8223,2484.4,2484.3,0.40258]
[1728291461989,1.22487,2484.4,2484.3,0.40258]
[1728291463691,0.8223,2484.4,2484.3,0.40258]
[1728291465495,1.22487,2484.4,2484.3,0.40258]
[1728291466403,0.8223,2484.4,2484.3,0.40258]
[1728291466900,0.8223,2484.4,2484.3,0.82768]
[1728291468497,1.22487,2484.4,2484.3,0.82768]
[1728291468702,0.8223,2484.4,2484.3,0.82768]
[1728291469199,1.22487,2484.4,2484.3,0.82768]
[1728291469394,0.8223,2484.4,2484.3,0.82768]
[1728291470404,1.22487,2484.4,2484.3,0.82768]
[1728291473500,0.8223,2484.4,2484.3,0.82768]
[1728291473699,1.22487,2484.4,2484.3,0.82768]
[1728291474301,0.4137,2484.6,2484.3,1.48067457]
[1728291474500,3.2078,2484.7,2484.6,0.40252]
[1728291474501,0.40252,2484.7,2484.6,0.40252]
[1728291474700,1.74,2484.7,2484.5,1.05557457]
[1728291475007,0.40253,2484.6,2484.5,1.05557457]
[1728291475210,2.52823,2484.6,2484.5,1.58518719]
[1728291475508,2.52823,2484.6,2484.3,2.10580328]
[1728291475509,0.40257,2484.4,2484.3,1.05557457]
[1728291475708,0.40258,2484.3,2484.2,1.05557457]
[1728291475911,0.82008,2484.3,2484.2,1.05557457]
[1728291478909,0.82008,2484.3,2484.2,1.45817457]
[1728291480312,0.82008,2484.3,2484.2,0.4026]
[1728291480705,0.82008,2484.3,2484.2,1.45817457]
[1728291481208,0.4026,2484.2,2484.1,1.45817457]
[1728291481510,1.2066,2484.2,2484.1,3.25113284]
[1728291481710,0.804,2484.2,2484.1,3.25113164]
[1728291481899,0.804,2484.2,2484.1,2.19555707]
[1728291482103,2.544,2484.2,2484.0,2.63598016]
[1728291482313,0.40262,2484.1,2484.0,1.0566277]
[1728291482501,0.40262,2484.1,2483.9,1.0566277]
[1728291482502,0.40263,2484.0,2483.9,1.0566277]
[1728291482701,2.14263,2484.0,2483.9,1.0566277]
[1728291483510,0.40265,2483.9,2483.8,1.0566277]
[1728291483712,1.21195,2483.9,2483.7,5.92332171]
[1728291483905,1.21195,2483.9,2483.8,0.40266]
[1728291485112,1.21195,2483.9,2483.8,0.82206]
[1728291485607,0.3858,2483.9,2483.8,0.82206]
[1728291485808,3.2078,2484.1,2484.0,0.40263]
[1728291486115,0.40262,2484.1,2484.0,0.40263]
[1728291486805,0.40262,2484.1,2483.9,1.0566277]
[1728291487006,0.40263,2484.0,2483.9,0.40264]
[1728291487210,1.74,2484.0,2483.9,0.40264]
[1728291487410,2.14263,2484.0,2483.9,0.40264]
[1728291487715,1.74,2484.0,2483.8,1.4760277]
[1728291487916,0.79065,2483.9,2483.8,0.82206]
[1728291488115,0.388,2483.9,2483.8,0.82206]
[1728291490907,5.7841,2484.2,2483.8,0.4194]
[1728291491107,1.74,2484.0,2483.8,0.40266]
[1728291491307,0.40265,2483.9,2483.7,1.4592977]
[1728291491614,0.8102,2483.8,2483.7,1.4592977]
[1728291491819,1.2027,2483.8,2483.7,0.40267]
[1728291492818,0.8121,2483.8,2483.7,0.40267]
[1728291494112,0.4196,2483.8,2483.7,0.40267]
[1728291496122,0.79354,2484.0,2483.6,3.6071277]
[1728291496314,1.19984,2484.0,2483.9,0.40265]
[1728291496819,0.40266,2483.9,2483.8,0.40265]
[1728291498016,0.7972,2484.0,2483.6,3.6071277]
[1728291498319,1.19984,2484.0,2483.9,0.40265]
[1728291499023,0.40265,2483.9,2483.8,0.40266]
[1728291500717,0.7972,2484.0,2483.6,3.6071277]
[1728291500916,1.19984,2484.0,2483.9,0.40265]
[1728291501510,0.40266,2483.9,2483.8,0.40265]
[1728291502417,0.7972,2484.0,2483.6,2.5505]
[1728291502621,1.19984,2484.0,2483.9,0.40265]
[1728291503618,0.40265,2483.9,2483.8,0.40266]
[1728291509728,0.40267,2483.8,2483.7,0.40267]
[1728291509922,0.40265,2483.9,2483.8,0.40265]
[1728291525231,1.74,2484.2,2483.8,1.05499643]
[1728291525529,0.40264,2484.0,2483.9,0.80114]
[1728291526736,0.40264,2484.0,2483.9,1.85613643]
[1728291529538,0.40264,2484.0,2483.9,3.64966759]
[1728291529733,0.40264,2484.0,2483.9,1.85613643]
[1728291530035,0.40264,2484.0,2483.9,3.64964343]
[1728291530235,0.40264,2484.0,2483.9,1.85613643]
[1728291530437,0.40264,2484.0,2483.9,3.64961401]
[1728291530637,0.40264,2484.0,2483.9,1.85613643]
[1728291530828,0.40264,2484.0,2483.9,3.64963599]
[1728291531031,0.40264,2484.0,2483.9,1.85613643]
[1728291533135,1.20133,2484.1,2484.0,0.40263]
[1728291535341,0.40263,2484.0,2483.9,1.45763643]
[1728291535935,0.40263,2484.0,2483.9,3.25119182]
[1728291536237,1.20132,2484.1,2484.0,0.40263]
[1728291540042,0.7987,2484.1,2484.0,0.40263]
[1728291540449,0.7987,2484.1,2484.0,1.45762643]
[1728291540648,1.20132,2484.1,2484.0,1.45762643]
[1728291541349,0.7987,2484.1,2484.0,0.40263]
[1728291541847,0.7987,2484.1,2484.0,1.45762643]
[1728291542047,0.7987,2484.1,2484.0,0.40263]
[1728291543647,0.7987,2484.1,2484.0,1.45762643]
[1728291544249,0.7987,2484.1,2484.0,3.25084209]
[1728291544452,0.7987,2484.1,2484.0,3.25067677]
[1728291545050,0.7987,2484.1,2484.0,3.25237779]
[1728291546150,0.7987,2484.1,2484.0,1.45932745]
[1728291546354,0.7987,2484.1,2484.0,3.25414353]
[1728291546555,0.7987,2484.1,2484.0,1.45932745]
[1728291546763,0.7987,2484.1,2484.0,3.25412403]
[1728291546952,0.7987,2484.1,2484.0,3.25414129]
[1728291547155,0.7987,2484.1,2484.0,1.45932745]
[1728291547549,0.7987,2484.1,2484.0,3.2540398]
[1728291547753,0.7987,2484.1,2484.0,1.45932745]
[1728291550663,0.3854,2484.1,2484.0,3.25383165]
[1728291550960,0.4136,2484.4,2484.3,0.40258]
[1728291551163,3.2078,2484.6,2484.2,2.79633457]
[1728291551359,0.8144,2484.8,2484.4,2.79633457]
[1728291551563,0.40253,2484.7,2484.6,0.40252]
[1728291559273,0.40252,2484.7,2484.6,0.40252]
[1728291559470,1.63591,2484.8,2484.6,0.40252]
[1728291559665,1.63591,2484.8,2484.6,0.40253]
[1728291559666,2.14252,2484.7,2484.6,0.40253]
[1728291561469,1.74,2484.7,2484.6,0.40253]
[1728291561875,2.14252,2484.7,2484.6,0.40253]
[1728291562874,1.74,2484.7,2484.6,0.40253]
[1728291563975,1.21691,2484.8,2484.4,1.74]
[1728291564270,0.8144,2484.8,2484.7,0.40252]
[1728291564476,1.2169,2484.8,2484.7,0.40252]
[1728291566275,0.8144,2484.8,2484.7,0.40252]
[1728291567473,1.2169,2484.8,2484.7,0.40252]
[1728291568481,0.8144,2484.8,2484.5,2.1522]
[1728291568677,0.40253,2484.7,2484.6,0.40253]
[1728291570185,0.40253,2484.7,2484.6,0.81763]
[1728291571676,0.8144,2484.8,2484.6,0.4151]
[1728291571878,0.40252,2484.7,2484.6,0.81762]
[1728291573878,0.40258,2484.4,2484.3,0.40258]
[1728291574080,0.40258,2484.4,2484.1,1.05344773]
[1728291574081,1.74,2484.4,2484.1,0.4135]
[1728291574380,1.21089,2484.3,2484.2,0.40259]
[1728291574774,2.5483,2484.3,2484.1,0.4135]
[1728291574979,0.4026,2484.2,2484.1,0.81611]
[1728291577190,0.4026,2484.2,2484.1,4.84171]
[1728291579087,0.4026,2484.2,2484.1,0.81611]
[1728291579387,0.4026,2484.2,2484.1,4.84171]
[1728291580484,0.4026,2484.2,2484.1,0.81611]
[1728291580688,0.4026,2484.2,2484.1,4.84171]
[1728291582087,0.4026,2484.2,2484.1,0.81611]
[1728291587189,0.40262,2484.1,2484.0,0.80372]
[1728291587382,2.1318,2484.2,2483.9,0.4008]
[1728291587589,0.3877,2484.0,2483.9,2.54345]
[1728291589487,0.79033,2484.0,2483.9,2.54345]
[1728291589692,0.3877,2484.0,2483.9,2.54345]
[1728291592591,2.1277,2484.0,2483.8,1.45754773]
[1728291592888,0.40266,2483.8,2483.7,0.78908]
[1728291593291,0.79816,2483.8,2483.7,0.78908]
[1728291596094,0.3955,2483.8,2483.7,0.78908]
[1728291596294,0.79816,2483.8,2483.7,0.78908]
[1728291596887,0.3955,2483.8,2483.7,0.78908]
[1728291600694,0.79816,2483.8,2483.7,0.78908]
[1728291600895,0.3955,2483.8,2483.5,1.46124725]
[1728291601092,1.74,2483.6,2483.4,1.05454725]
[1728291601398,0.40273,2483.4,2483.3,5.07158725]
[1728291601589,0.40273,2483.4,2483.3,4.01704]
[1728291601795,0.82143,2483.4,2483.3,4.01704]
[1728291602397,0.4187,2483.4,2483.3,5.75704]
[1728291602900,0.40269,2483.7,2483.6,0.40268]
[1728291603102,0.40269,2483.7,2483.6,2.14268]
[1728291604201,0.3844,2483.8,2483.7,0.40268]
[1728291604398,0.40266,2483.9,2483.8,0.40266]
[1728291606303,0.40266,2483.8,2483.7,1.24036]
[1728291608115,0.40266,2483.8,2483.7,0.8377]
[1728291608797,0.82396,2483.8,2483.7,1.24038]
[1728291612702,0.40271,2483.5,2483.4,1.45726725]
[1728291613001,0.40271,2483.5,2483.3,4.68344725]
[1728291613002,1.74,2483.5,2483.3,4.68344725]
[1728291613302,0.79543,2483.4,2483.3,4.03164]
[1728291614305,0.79543,2483.4,2483.3,3.6289]
[1728291615907,0.79543,2483.4,2483.3,4.03165]
[1728291622411,0.79543,2483.4,2483.3,3.6289]
[1728291622715,0.79543,2483.4,2483.3,4.03165]
[1728291623414,0.79543,2483.4,2483.3,3.6289]
[1728291623717,0.79543,2483.4,2483.3,4.03165]
[1728291624205,1.19733,2483.4,2483.3,3.2078]
[1728291624402,1.19733,2483.4,2483.3,3.61055]
[1728291624403,1.61763,2483.4,2483.3,3.61055]
[1728291624805,1.61763,2483.4,2483.3,3.2078]
[1728291625205,1.61763,2483.4,2483.1,1.58182088]
[1728291625206,0.40276,2483.2,2483.1,0.40277]
[1728291625613,0.40278,2483.1,2483.0,1.87713725]
[1728291625817,0.79948,2483.1,2483.0,1.87713725]
[1728291626227,0.3967,2483.1,2483.0,1.87713725]
[1728291626410,0.79948,2483.1,2483.0,1.87713725]
[1728291626716,0.79948,2483.1,2483.0,0.82259]
[1728291627317,0.3967,2483.1,2483.0,0.82259]
[1728291637520,2.5298,2483.1,2483.0,0.82259]
[1728291642933,0.7898,2483.1,2483.0,0.82259]
[1728291648625,0.82303,2483.4,2483.3,0.40275]
[1728291648929,0.4203,2483.4,2483.3,0.40275]
[1728291649329,1.21033,2483.5,2483.4,0.40273]
[1728291649733,1.21033,2483.5,2483.1,0.19002725]
[1728291650031,1.74,2483.2,2482.6,0.808]
[1728291650234,1.74,2483.0,2482.7,1.2088]
[1728291650637,0.40281,2482.9,2482.7,1.61164]
[1728291650937,0.40281,2482.9,2482.7,1.2088]
[1728291651133,0.4146,2482.8,2482.7,1.2088]
[1728291651836,0.81743,2482.8,2482.7,1.2088]
[1728291654740,0.81743,2482.8,2482.7,1.61164]
[1728291655333,0.81743,2482.8,2482.7,1.2088]
[1728291656727,0.81743,2482.8,2482.7,1.61164]
[1728291659238,0.4146,2482.8,2482.7,1.61164]
[1728291661644,0.40289,2482.5,2482.3,0.4029]
[1728291661830,0.80679,2482.4,2482.3,0.4029]
[1728291662226,0.80679,2482.4,2482.2,0.4178]
[1728291662429,2.14291,2482.3,2482.2,0.4178]
[1728291662839,2.55671,2482.3,2482.2,0.82072]
[1728291663137,2.1538,2482.3,2482.2,0.82072]
[1728291663338,2.55671,2482.3,2482.2,0.82072]
[1728291663638,2.1538,2482.3,2482.2,0.82072]
[1728291665336,2.55671,2482.3,2482.2,0.82072]
[1728291666040,2.1538,2482.3,2482.2,0.82072]
[1728291666540,2.55671,2482.3,2482.2,0.82072]
[1728291666740,2.1538,2482.3,2482.2,0.82072]
[1728291666942,2.55671,2482.3,2482.2,0.40292]
[1728291667135,2.1538,2482.3,2482.2,0.40292]
[1728291667337,1.74,2482.3,2482.2,0.80432]
[1728291670639,2.14291,2482.3,2482.2,0.80432]
[1728291670948,1.74,2482.3,2482.2,0.80432]
[1728291671141,2.14291,2482.3,2482.2,0.40292]
[1728291671445,0.40292,2482.2,2482.1,0.80213]
[1728291671840,1.74,2482.3,2482.1,0.3992]
[1728291672037,2.14292,2482.3,2482.1,0.3992]
[1728291672237,0.40292,2482.2,2482.1,0.80213]
[1728291672941,2.14292,2482.3,2482.1,0.80213]
[1728291673942,0.40292,2482.2,2482.1,0.80213]
[1728291674144,2.14292,2482.3,2482.1,0.80213]
[1728291674345,2.14292,2482.3,2482.2,0.40292]
[1728291675646,1.74,2482.3,2482.2,0.40292]
[1728291678455,0.4039,2482.4,2482.3,0.40291]
[1728291678938,0.4039,2482.4,2482.3,0.80771]
[1728291682539,1.74,2482.7,2482.6,0.40284]
[1728291682846,2.1292,2482.7,2482.6,0.40284]
[1728291683648,2.53204,2482.7,2482.6,0.40284]
[1728291684743,2.53205,2482.7,2482.6,0.40286]
[1728291685043,2.1292,2482.7,2482.6,0.40286]
[1728291686046,2.1292,2482.7,2482.6,0.80866]
[1728291686745,2.53205,2482.7,2482.6,0.40286]
[1728291686954,2.1292,2482.7,2482.6,0.40286]
[1728291706251,4.9478,2482.9,2482.6,0.40286]
[1728291706457,4.9478,2482.9,2482.8,0.40283]
[1728291707761,5.3488,2482.9,2482.8,0.40283]
[1728291708156,5.75161,2482.9,2482.8,0.40283]
[1728291708355,5.3488,2482.9,2482.8,0.40283]
[1728291708556,5.75161,2482.9,2482.8,0.40283]
[1728291709157,5.3488,2482.9,2482.8,0.40283]
[1728291710356,5.75161,2482.9,2482.8,0.40283]
[1728291710554,5.3488,2482.9,2482.8,0.40283]
[1728291710861,5.75161,2482.9,2482.8,0.40283]
[1728291711064,5.3488,2482.9,2482.8,0.40283]
[1728291711360,5.75161,2482.9,2482.8,0.40283]
[1728291711558,5.3488,2482.9,2482.8,0.40283]
[1728291712164,5.75161,2482.9,2482.8,0.40283]
[1728291713060,5.3488,2482.9,2482.8,0.40283]
[1728291714264,2.141,2482.9,2482.8,0.40283]
[1728291722169,2.54381,2482.9,2482.8,0.40283]
[1728291722365,2.141,2482.9,2482.8,0.40283]
[1728291723162,2.54381,2482.9,2482.8,0.40283]
[1728291724372,2.141,2482.9,2482.8,0.40283]
[1728291725068,2.54381,2482.9,2482.8,0.40283]
[1728291728862,2.141,2482.9,2482.8,0.40283]
[1728291729064,3.2078,2483.4,2482.8,7.01223309]
[1728291729268,0.4095,2483.3,2483.0,1.58566465]
[1728291729578,1.74,2483.1,2483.0,1.98845465]
[1728291729873,1.74,2483.1,2483.0,3.78708387]
[1728291730066,1.74,2483.1,2483.0,2.20141922]
[1728291730570,1.74,2483.1,2483.0,0.40279]
[1728291734471,2.14278,2483.1,2483.0,0.40279]
[1728291735069,1.74,2483.1,2483.0,0.40279]
[1728291735371,2.14278,2483.1,2483.0,0.40279]
[1728291735772,2.14278,2483.1,2482.9,0.40279]
[1728291735978,2.14278,2483.1,2482.8,0.7826]
[1728291736280,2.14278,2483.1,2483.0,0.40279]
[1728291737769,0.40279,2483.0,2482.9,0.4028]
[1728291737966,0.3999,2483.0,2482.9,0.4028]
[1728291739672,1.74,2483.6,2483.3,0.40274]
[1728291739978,0.81492,2483.5,2483.3,0.40273]
[1728291740366,0.4122,2483.5,2483.3,0.40273]
[1728291740967,0.4122,2483.5,2483.2,1.2045]
[1728291741173,0.40273,2483.4,2483.3,0.40273]
[1728291741775,0.4122,2483.5,2483.2,1.2045]
[1728291741976,0.81492,2483.5,2483.4,0.40273]
[1728291743073,0.40274,2483.4,2483.3,0.40273]
[1728291749081,0.40275,2483.3,2483.2,1.2045]
[1728291749281,0.40275,2483.3,2483.2,0.7881]
[1728291749686,0.40279,2483.0,2482.9,0.40281]
[1728291749887,5.3694,2483.4,2482.8,1.96066465]
[1728291749888,0.40281,2482.9,2482.8,0.7857]
[1728291750989,0.40281,2482.9,2482.4,3.06676217]
[1728291750990,1.74,2482.9,2482.4,3.32566465]
[1728291751309,0.40287,2482.6,2482.5,1.1934]
[1728291751784,0.79867,2482.6,2482.5,1.59628]
[1728291752690,0.3958,2482.6,2482.5,1.59628]
[1728291752891,0.79866,2482.6,2482.5,1.59628]
[1728291753087,0.40286,2482.6,2482.5,1.59628]
[1728291753785,0.40286,2482.6,2482.5,1.1934]
[1728291763497,0.40286,2482.6,2482.5,1.59628]
[1728291763796,0.40286,2482.6,2482.5,0.7959]
[1728291765194,2.14286,2482.6,2482.5,0.3985]
[1728291766289,2.14286,2482.6,2482.5,0.80138]
[1728291766487,0.40286,2482.6,2482.5,0.80138]
[1728291767598,0.40286,2482.6,2482.5,0.3985]
[1728291768992,2.14286,2482.6,2482.5,0.3985]
[1728291769596,0.40288,2482.5,2482.4,0.81988]
[1728291769899,0.81558,2482.5,2482.4,0.81988]
[1728291775593,0.81558,2482.5,2482.4,0.417]
[1728291776990,0.81558,2482.5,2482.4,0.81989]
[1728291777394,0.81558,2482.5,2482.4,0.417]
[1728291778699,0.40291,2482.3,2482.2,0.8255]
[1728291778999,0.40291,2482.3,2482.2,1.2114]
[1728291779000,2.14291,2482.3,2482.2,1.2114]
[1728291779205,0.40294,2482.1,2482.0,3.61076]
[1728291781101,0.4188,2482.2,2482.0,3.61076]
[1728291781102,0.4188,2482.2,2482.0,4.9478]
[1728291781309,0.82174,2482.2,2482.1,0.40294]
[1728291783204,0.40294,2482.2,2482.1,0.40294]
[1728291785101,0.3986,2482.3,2482.0,1.74]
[1728291785401,0.3986,2482.3,2482.1,0.40294]
[1728291785402,0.40294,2482.2,2482.1,0.40294]
[1728291785701,0.3986,2482.3,2482.0,1.74]
[1728291785906,0.40294,2482.1,2482.0,2.14294]
[1728291790810,0.40296,2482.0,2481.9,4.38386]
[1728291791002,0.40296,2482.0,2481.9,0.7731]
[1728291791306,0.82526,2482.0,2481.9,1.17607]
[1728291791507,0.82526,2482.0,2481.9,0.7731]
[1728291792804,0.82526,2482.0,2481.9,0.3872]
[1728291793008,1.23376,2482.0,2481.9,0.3872]
[1728291793703,0.8308,2482.0,2481.9,0.79017]
[1728291794601,0.40293,2482.2,2482.1,0.40294]
[1728291795104,4.43173,2482.2,2482.0,0.4117]
[1728291795405,2.97611,2482.3,2482.0,0.4117]
[1728291795615,2.97611,2482.3,2482.2,0.40292]
[1728291795616,1.23611,2482.3,2482.2,0.40292]
[1728291795908,0.40288,2482.5,2482.4,0.40289]
[1728291796101,0.81828,2482.5,2482.4,0.40289]
[1728291798608,0.40289,2482.4,2482.3,0.4029]
[1728291798805,0.80419,2482.4,2482.3,0.4029]
[1728291799517,0.4013,2482.4,2482.3,0.4029]
[1728291803607,0.80419,2482.4,2482.3,0.4029]
[1728291804111,0.4013,2482.4,2482.3,0.4029]
[1728291805016,0.80419,2482.4,2482.3,0.4029]
[1728291809616,0.80419,2482.4,2482.2,0.40291]
[1728291809617,0.40293,2482.3,2482.2,0.40291]
[1728291810021,0.40294,2482.1,2482.0,1.88150861]
[1728291810215,0.40294,2482.1,2482.0,0.82734]
[1728291810216,2.14294,2482.1,2482.0,0.82734]
[1728291811120,1.74,2482.1,2481.8,1.47956861]
[1728291811327,0.40297,2482.0,2481.9,0.40297]
[1728291812712,0.40298,2481.9,2481.8,0.40298]
[1728291812914,0.8048,2481.9,2481.8,0.40298]
[1728291813216,1.20777,2481.9,2481.8,0.40298]
[1728291814118,0.8048,2481.9,2481.8,0.40298]
[1728291815014,1.20777,2481.9,2481.8,0.40298]
[1728291815316,0.8048,2481.9,2481.8,0.40298]
[1728291817022,1.20777,2481.9,2481.8,0.40298]
[1728291817424,0.8048,2481.9,2481.8,0.40298]
[1728291818021,1.20777,2481.9,2481.8,0.40298]
[1728291819118,0.8048,2481.9,2481.8,0.40298]
[1728291820126,1.20777,2481.9,2481.8,0.40298]
[1728291821828,0.80487,2481.9,2481.8,0.40298]
[1728291823624,0.80489,2481.9,2481.8,0.40299]
[1728291823830,2.54489,2481.9,2481.8,0.40299]
[1728291824023,0.40301,2481.7,2481.6,1.05416861]
[1728291824526,0.40301,2481.7,2481.6,0.40302]
[1728291825017,0.40302,2481.6,2481.5,1.45718861]
[1728291825219,1.74,2481.8,2481.4,4.02096861]
[1728291825525,0.40302,2481.7,2481.6,0.40301]
[1728291826229,1.74,2481.8,2481.5,1.05416861]
[1728291826422,0.40302,2481.6,2481.5,0.40303]
[1728291827030,0.40302,2481.6,2481.4,4.02096861]
[1728291827031,1.74,2481.8,2481.4,4.02096861]
[1728291827332,0.40301,2481.7,2481.6,0.40301]
[1728291827526,1.74,2481.8,2481.4,2.28096861]
[1728291827728,1.74,2481.7,2481.4,2.28096861]
[1728291827922,0.40303,2481.6,2481.5,0.40303]
[1728291830435,2.74749,2481.8,2481.4,1.2268]
[1728291830632,0.40304,2481.5,2481.4,1.62984]
[1728291831134,0.4189,2481.6,2481.4,1.2268]
[1728291831531,0.40304,2481.5,2481.4,1.62984]
[1728291833232,0.4189,2481.6,2481.4,1.2268]
[1728291833632,0.40304,2481.5,2481.4,1.62984]
[1728291841138,2.14304,2481.5,2481.4,0.40304]
[1728291841842,1.74,2481.5,2481.2,4.4332]
[1728291842042,0.40306,2481.4,2481.3,0.40306]
[1728291843031,0.40306,2481.4,2481.3,0.40307]
[1728291844437,2.14305,2481.5,2481.4,0.40305]
[1728291844638,0.40306,2481.4,2481.3,0.40306]
[1728291845535,2.14305,2481.5,2481.4,0.40305]
[1728291848546,0.40306,2481.4,2481.3,0.40306]
[1728291849334,2.14305,2481.5,2481.4,0.40305]
[1728291851443,0.40306,2481.4,2481.3,0.40306]
[1728291852139,1.74,2481.5,2481.2,2.27956861]
[1728291852344,2.14305,2481.5,2481.4,0.40305]
[1728291854538,1.74,2481.5,2481.4,0.40305]
[1728291856947,2.14304,2481.5,2481.4,0.40305]
[1728291857136,1.74,2481.5,2481.4,0.40305]
[1728291859042,2.14304,2481.5,2481.4,0.40305]
[1728291859241,1.74,2481.5,2481.4,0.40305]
[1728291859443,2.14304,2481.5,2481.4,0.40305]
[1728291859643,1.74,2481.5,2481.4,0.40305]
[1728291859848,2.14304,2481.5,2481.4,0.40305]
[1728291860447,1.74,2481.5,2481.4,1.45721861]
[1728291860844,2.14304,2481.5,2481.4,1.45721861]
[1728291861542,1.74,2481.5,2481.4,1.45721861]
[1728291862451,2.14304,2481.5,2481.4,1.45721861]
[1728291862748,1.74,2481.5,2481.4,1.45721861]
[1728291863148,2.14304,2481.5,2481.4,1.45721861]
[1728291863749,1.74,2481.5,2481.4,1.45721861]
[1728291864448,2.14304,2481.5,2481.4,1.45721861]
[1728291864749,1.74,2481.5,2481.4,1.45721861]
[1728291864943,2.14304,2481.5,2481.4,1.45721861]
[1728291865851,2.14304,2481.5,2481.4,3.27283964]
[1728291866147,1.74,2481.5,2481.4,3.27283964]
[1728291868145,1.74,2481.5,2481.4,4.85850429]
[1728291868342,1.74,2481.5,2481.4,4.32902676]
[1728291868553,2.14304,2481.5,2481.4,4.32903067]
[1728291868756,1.74,2481.5,2481.4,3.2762458]
[1728291868951,1.74,2481.5,2481.4,3.27623465]
[1728291869152,1.74,2481.5,2481.4,3.80433568]
[1728291869455,2.14304,2481.5,2481.4,4.32903057]
[1728291869648,1.74,2481.5,2481.4,4.32903057]
[1728291871154,1.74,2481.5,2481.4,4.33320924]
[1728291871651,2.14304,2481.5,2481.4,4.33337862]
[1728291872555,1.74,2481.5,2481.4,4.33337862]
[1728291873852,2.14304,2481.5,2481.4,4.33337862]
[1728291874458,1.74,2481.5,2481.4,4.33337862]
[1728291875160,1.74,2481.5,2481.4,4.33347234]
[1728291876050,1.74,2481.5,2481.4,2.51367264]
[1728291876256,1.74,2481.5,2481.4,4.33396933]
[1728291876452,2.14304,2481.5,2481.4,4.33396933]
[1728291878060,2.14304,2481.5,2481.4,3.80901134]
[1728291878254,2.14304,2481.5,2481.4,4.85905504]
[1728291878456,2.14304,2481.5,2481.4,4.859076]
[1728291878955,2.14304,2481.5,2481.4,2.87036135]
[1728291879259,2.14304,2481.5,2481.4,0.52502203]
[1728291879459,2.54514,2481.5,2481.4,0.52502203]
[1728291880766,2.1421,2481.5,2481.3,1.05836993]
[1728291880962,2.14305,2481.4,2481.3,1.05836993]
[1728291881353,2.54595,2481.4,2481.3,1.05836993]
[1728291882463,2.54595,2481.4,2481.3,1.46143993]
[1728291882761,2.54595,2481.4,2481.3,1.05836993]
[1728291883562,2.54595,2481.4,2481.3,1.46143993]
[1728291883862,2.54595,2481.4,2481.3,1.05836993]
[1728291884161,2.54595,2481.4,2481.3,1.46143993]
[1728291884961,2.54595,2481.4,2481.3,1.05836993]
[1728291886266,0.40307,2481.3,2481.2,2.68683993]
[1728291886565,0.79377,2481.3,2481.2,4.50631059]
[1728291887962,0.79377,2481.3,2481.2,4.10324059]
[1728291888670,0.79377,2481.3,2481.2,4.50633059]
[1728291888966,0.79377,2481.3,2481.0,0.40312]
[1728291888967,0.4031,2481.2,2481.0,0.40312]
[1728291889165,1.74,2481.2,2481.0,0.40311]
[1728291889365,0.4031,2481.1,2481.0,0.40311]
[1728291889764,10.0304,2481.1,2480.8,1.05836993]
[1728291890062,1.74,2481.2,2480.7,1.05836993]
[1728291890063,10.1959,2481.0,2480.7,1.05836993]
[1728291890367,0.40317,2480.7,2480.5,1.46155993]